[Event "Paris FIDE GP"]
[Site "Elancourt"]
[Date "2013.09.23"]
[Round "2"]
[White "Dominguez Perez, Leinier"]
[Black "Nakamura, Hikaru"]
[Result "1/2-1/2"]
[ECO "C83"]
[WhiteElo "2757"]
[BlackElo "2772"]
[Annotator "ChessBase Website"]
[PlyCount "88"]
[EventDate "2013.09.22"]
[EventType "tourn"]
[EventRounds "11"]
[EventCountry "FRA"]
[EventCategory "20"]
[SourceTitle "CBM 157"]
[Source "ChessBase"]
[SourceDate "2013.11.12"]
[SourceVersion "1"]
[SourceVersionDate "2013.11.12"]
[SourceQuality "1"]
[TimeControl "40/7200:20/3600:900+30"]
[WhiteClock "2:00:00"]
[BlackClock "2:00:00"]

1. e4 {[%emt 0:00:04]} e5 {[%emt 0:00:07] Nakamura showed an impressive
preparation and was able to obtain a good position against Dominguez's Spanish.
He continued to play quickly but Dominguez position was still solid and
Nakamura was unable to do anything with his huge time advantage. He finished
the game with over two hours on the clock, despite starting the game with only
two hours (he was added an extra one when they crossed move 40).} 2. Nf3 {
[%emt 0:00:07]} Nc6 {[%emt 0:00:04]} 3. Bb5 {[%emt 0:00:24]} a6 {[%emt 0:00:08]
} 4. Ba4 {[%emt 0:00:07]} Nf6 {[%emt 0:00:04]} 5. O-O {[%emt 0:02:01]} Nxe4 {
[%emt 0:00:09]} 6. d4 {[%emt 0:00:06]} b5 {[%emt 0:00:04]} 7. Bb3 {[%emt 0:00:
07]} d5 {[%emt 0:00:04]} 8. dxe5 {[%emt 0:00:08]} Be6 {[%emt 0:00:04]} 9. Be3 {
[%emt 0:02:36]} Be7 {[%emt 0:01:05]} 10. c3 {[%emt 0:00:14]} Nc5 {[%emt 0:00:
38]} 11. Bc2 {[%emt 0:01:30]} Nd7 {[%emt 0:01:29]} 12. Re1 {[%emt 0:01:24]}
Ndxe5 {[%emt 0:00:40]} 13. Nxe5 {[%emt 0:00:08]} Nxe5 {[%emt 0:00:04]} 14. Bd4
{[%emt 0:00:16]} Ng6 {[%emt 0:00:02]} 15. Bxg7 {[%emt 0:04:52]} Rg8 {[%emt 0:
00:07]} 16. Bxg6 {[%emt 0:00:48]} Rxg7 {[%emt 0:00:05]} 17. Rxe6 {[%emt 0:00:
09]} hxg6 {[%emt 0:00:03]} 18. Re2 {[%emt 0:04:54]} Kf8 {[%emt 0:00:06]} 19.
Nd2 {[%emt 0:10:39]} Rh7 {[%emt 0:00:17]} 20. Nf3 {[%emt 0:01:33]} Bf6 {
[%emt 0:00:11]} 21. Qd3 {[%emt 0:16:38]} (21. a4 Kg7 22. Qb3 c6 23. Qb4 Rh8 24.
Rae1 bxa4 25. h3 Qc7 26. Qxa4 c5 27. Ne5 Rhe8 28. Ng4 Rxe2 29. Rxe2 Qd6 30.
Nxf6 {1/2-1/2 (30) Ponomariov,R (2758)-Roiz,M (2668) Saratov 2011}) 21... Kg7 {
[%emt 0:11:32]} 22. a4 $146 {[%emt 0:09:09]} (22. Rae1 Rh5 23. g4 {Timoshenko,
G (2569)-Grandadam,N (2361) Cappelle op 28th 2012 (1) 1-0}) 22... c6 {[%emt 0:
01:32]} 23. h3 {[%emt 0:06:36]} Rh8 {[%emt 0:00:27]} 24. Ne5 {[%emt 0:08:39]}
Qd6 {[%emt 0:22:28]} 25. Ng4 {[%emt 0:00:08]} Rhe8 {[%emt 0:00:38]} 26. axb5 {
[%emt 0:03:19]} axb5 {[%emt 0:00:15]} 27. Rxa8 {[%emt 0:00:48]} Rxa8 {[%emt 0:
00:09]} 28. g3 {[%emt 0:00:08]} Kg8 {[%emt 0:03:05]} 29. Nxf6+ {[%emt 0:04:03]}
Qxf6 {[%emt 0:00:15]} 30. Kg2 {[%emt 0:00:03]} Kg7 {[%emt 0:01:28]} 31. b4 {
[%emt 0:03:04]} Ra3 $11 {[%emt 0:00:57]} 32. Re3 {[%emt 0:00:07]} Rxc3 {
[%emt 0:00:31]} 33. Qxc3 {[%emt 0:00:11]} d4 {[%emt 0:00:03]} 34. Qc5 {[%emt 0:
06:54]} dxe3 {[%emt 0:00:06]} 35. fxe3 {[%emt 0:01:17]} Qb2+ {[%emt 0:00:23]}
36. Kf3 {[%emt 0:00:15]} Qh2 {[%emt 0:01:44]} 37. Qd4+ {[%emt 0:01:44]} Kg8 {
[%emt 0:01:36]} 38. Qd8+ {[%emt 0:05:47]} Kg7 {[%emt 0:01:39]} 39. Qd4+ {
[%emt 0:00:11]} f6 {[%emt 0:00:34]} 40. Qd7+ {[%emt 0:00:00]} Kh6 {[%emt 0:00:
00]} 41. Qe8 {[%emt 0:16:33]} Qh1+ {[%emt 0:00:59]} 42. Kf2 {[%emt 0:01:02]}
Qh2+ {[%emt 0:00:06]} 43. Kf3 {[%emt 0:01:06]} Qh1+ {[%emt 0:00:05]} 44. Kf2 {
[%emt 0:00:27]} Qh2+ {[%emt 0:02:14]} 1/2-1/2

[Event "Val Thorens op 05th "]
[Site "Val Thorens"]
[Date "1980.07.??"]
[Round "?"]
[White "Stoica, Valentin"]
[Black "Staller, Peter"]
[Result "1-0"]
[ECO "C83"]
[WhiteElo "2435"]
[BlackElo "2315"]
[Annotator "Marin,M"]
[PlyCount "79"]
[EventDate "1980.07.??"]
[EventType "swiss"]
[EventRounds "9"]
[EventCountry "FRA"]
[SourceTitle "EXT 2004"]
[Source "ChessBase"]
[SourceDate "2003.11.25"]
[SourceVersion "1"]
[SourceVersionDate "2003.11.25"]
[SourceQuality "1"]
[TimeControl "40/7200:20/3600:0"]

1. e4 e5 2. Nf3 Nc6 3. Bb5 a6 4. Ba4 Nf6 5. O-O Nxe4 6. d4 b5 7. Bb3 d5 8. dxe5
Be6 9. Be3 (9. c3) 9... Be7 10. Nbd2 Nc5 11. c3 Bg4 (11... Nd3 $1) 12. Bc2 Ne6
13. Qb1 Bh5 14. b4 $5 $14 {[%csl Rc6,Rc7]} (14. a4 b4 15. a5 Bg6 16. Nb3 bxc3
17. bxc3 Qb8 18. Qa2 O-O 19. Bxg6 hxg6 20. Rab1 Qb5 21. Qc2 Qc4 22. Nfd2 Qg4
23. f4 Qf5 24. Qxf5 gxf5 25. Nf3 Rfb8 26. Nfd4 Ncxd4 27. Nxd4 Nxd4 28. cxd4 Bb4
29. Ra1 Rb5 30. Ra4 Rab8 31. Rfa1 Bc3 32. Rc1 Rb1 33. Rxb1 Rxb1+ 34. Kf2 Ra1
35. Rxa1 Bxa1 36. Ke2 Bc3 37. Kd3 Bxa5 38. h3 Be1 39. g4 g6 40. Kc2 Kf8 41. Kd1
Bg3 {0-1 (41) Gligoric,S-Szabo,L Zuerich 1953}) 14... Bg6 15. Nb3 (15. a4 O-O
$6 {Blundering a pawn.} 16. Nb3) 15... O-O (15... Qd7 $1 {[%csl Ga4][%cal
Gc6a4] White may find it difficult to carry out a4 after Qd7}) 16. a4 Qd7 17.
axb5 axb5 18. Rxa8 Rxa8 19. Bxg6 hxg6 20. Rd1 Bd8 21. Rd2 Ra4 22. h3 Ne7 23. g4
Qc6 24. Nc5 Nxc5 25. Bxc5 Qa8 26. Rd1 Ra6 27. Qd3 d4 28. Nxd4 Nd5 29. Nxb5 Ra1
30. Rxa1 Qxa1+ 31. Kh2 c6 32. Be3 Bh4 33. Nd4 Qa2 34. Ne2 Kh7 35. Kg2 Qa8 36.
Nf4 Qa2 37. Nxd5 cxd5 38. b5 Qa8 39. Bd4 Qb7 40. b6 1-0